fUST/lending_fUST_20250901
["ID","MTS","AMOUNT","RATE_DAILY","PERIOD"]
[382539884,1756660256485,-480.0,0.00018346,2]
[382539885,1756660256494,-1209.99,0.00018346,2]
[382539886,1756660256503,-587.53,0.00018346,2]
[382539887,1756660256513,-980.26,0.00018346,2]
[382539888,1756660256522,-480.0,0.00018346,2]
[382539889,1756660256532,-333.91199684,0.00018346,2]
[382539890,1756660256542,-1285.46,0.00018346,2]
[382539891,1756660256551,-480.0,0.00018346,2]
[382539892,1756660256561,-816.43,0.00018346,2]
[382539893,1756660256573,-480.0,0.00018346,2]
[382539894,1756660256583,-480.0,0.00018346,2]
[382539895,1756660256592,-480.0,0.00018346,2]
[382539896,1756660256603,-864.13,0.00018346,2]
[382539897,1756660256612,-480.0,0.00018346,2]
[382539898,1756660256621,-480.0,0.00018346,2]
[382539899,1756660256631,-480.0,0.00018346,2]
[382539900,1756660256641,-480.0,0.00018346,2]
[382539901,1756660256651,-480.0,0.00018346,2]
[382539902,1756660256661,-1067.38,0.00018346,2]
[382539903,1756660256671,-480.0,0.00018346,2]
[382539904,1756660256681,-480.0,0.00018346,2]
[382539905,1756660256693,-816.36,0.00018346,2]
[382539906,1756660256704,-917.59,0.00018346,2]
[382539907,1756660256714,-1244.04,0.00018346,2]
[382539908,1756660256724,-769.18,0.00018346,2]
[382539909,1756660256734,-480.0,0.00018346,2]
[382539910,1756660256743,-480.0,0.00018346,2]
[382539911,1756660256752,-480.0,0.00018346,2]
[382539912,1756660256762,-608.42,0.00018346,2]
[382539913,1756660256771,-151.0,0.00018346,2]
[382539914,1756660256781,-480.0,0.00018346,2]
[382539915,1756660256791,-480.0,0.00018346,2]
[382539916,1756660256801,-1084.36,0.00018346,2]
[382539917,1756660256811,-562.16,0.00018346,2]
[382539918,1756660256821,-480.0,0.00018346,2]
[382539919,1756660256830,-480.0,0.00018346,2]
[382539920,1756660256840,-151.0,0.00018346,2]
[382539921,1756660256850,-151.0,0.00018346,2]
[382539922,1756660256860,-151.0,0.00018346,2]
[382539923,1756660256870,-480.0,0.00018346,2]
[382539924,1756660256879,-575.89,0.00018346,2]
[382539925,1756660256888,-687.11,0.00018346,2]
[382539926,1756660256898,-480.0,0.00018346,2]
[382539927,1756660256907,-638.64,0.00018346,2]
[382539928,1756660256916,-480.0,0.00018346,2]
[382539929,1756660256926,-1208.65,0.00018346,2]
[382539930,1756660256935,-492.2747479,0.00018346,2]
[382539931,1756660256944,-480.0,0.00018346,2]
[382539932,1756660256954,-151.0,0.00018346,2]
[382539933,1756660256964,-480.0,0.00018346,2]
[382539934,1756660256974,-506.37,0.00018346,2]
[382539935,1756660256983,-519.98,0.00018346,2]
[382539936,1756660256993,-714.29,0.00018346,2]
[382539937,1756660257002,-480.0,0.00018346,2]
[382539938,1756660257011,-566.07,0.00018346,2]
[382539939,1756660257021,-591.06,0.00018346,2]
[382539940,1756660257031,-480.0,0.00018346,2]
[382539941,1756660257040,-581.93,0.00018346,2]
[382539942,1756660257049,-1550.6,0.00018346,2]
[382539943,1756660257058,-480.0,0.00018346,2]
[382539944,1756660257068,-480.0,0.00018346,2]
[382539945,1756660257077,-480.0,0.00018346,2]
[382539946,1756660257087,-480.0,0.00018346,2]
[382539947,1756660257095,-480.0,0.00018346,2]
[382539948,1756660257105,-480.0,0.00018346,2]
[382539949,1756660257114,-480.0,0.00018346,2]
[382539950,1756660257124,-530.87,0.00018346,2]
[382539951,1756660257134,-480.0,0.00018346,2]
[382539952,1756660257143,-151.0,0.00018346,2]
[382539953,1756660257152,-151.0,0.00018346,2]
[382539954,1756660257162,-151.0,0.00018346,2]
[382539955,1756660257171,-151.0,0.00018346,2]
[382539956,1756660257180,-480.0,0.00018346,2]
[382539957,1756660257189,-783.11,0.00018346,2]
[382539958,1756660257199,-480.0,0.00018346,2]
[382539959,1756660257208,-524.41,0.00018346,2]
[382539960,1756660257218,-480.0,0.00018346,2]
[382539961,1756660257229,-567.31,0.00018346,2]
[382539962,1756660257238,-483.96,0.00018346,2]
[382539963,1756660257248,-504.08,0.00018346,2]
[382539964,1756660257258,-850.27,0.00018346,2]
[382539965,1756660257270,-480.0,0.00018346,2]
[382539966,1756660257280,-151.0,0.00018346,2]
[382539967,1756660257292,-763.15,0.00018346,2]
[382539968,1756660257302,-836.89,0.00018346,2]
[382539969,1756660257312,-707.84,0.00018346,2]
[382539970,1756660257323,-480.0,0.00018346,2]
[382539971,1756660257332,-1038.66,0.00018346,2]
[382539972,1756660257343,-802.97,0.00018346,2]
[382539973,1756660257353,-151.0,0.00018346,2]
[382539974,1756660257363,-480.0,0.00018346,2]
[382539975,1756660257375,-998.01,0.00018346,2]
[382539976,1756660257387,-480.0,0.00018346,2]
[382539977,1756660257396,-1032.21,0.00018346,2]
[382539978,1756660257408,-480.0,0.00018346,2]
[382539979,1756660257418,-480.0,0.00018346,2]
[382539980,1756660257427,-835.98,0.00018346,2]
[382539981,1756660257437,-336.72,0.00018346,2]
[382539982,1756660257447,-1065.95,0.00018346,2]
[382539983,1756660257457,-480.0,0.00018346,2]
[382539984,1756660257466,-151.0,0.00018346,2]
[382539985,1756660257476,-1048.2,0.00018346,2]
[382539986,1756660257487,-511.02,0.00018346,2]
[382539987,1756660257497,-480.0,0.00018346,2]
[382539988,1756660257507,-480.0,0.00018346,2]
[382539989,1756660257516,-480.0,0.00018346,2]
[382539990,1756660257528,-480.0,0.00018346,2]
[382539991,1756660257537,-480.0,0.00018346,2]
[382539992,1756660257547,-480.0,0.00018346,2]
[382539993,1756660257557,-544.28,0.00018346,2]
[382539994,1756660257567,-567.11,0.00018346,2]
[382539995,1756660257577,-622.72287376,0.00018346,2]
[382539996,1756660257588,-1174.02,0.00018346,2]
[382539997,1756660257599,-1021.01,0.00018346,2]
[382539998,1756660257610,-480.0,0.00018346,2]
[382539999,1756660257619,-946.11,0.00018346,2]
[382540000,1756660257629,-526.64,0.00018346,2]
[382540001,1756660257639,-1162.16,0.00018346,2]
[382540002,1756660257649,-480.0,0.00018346,2]
[382540003,1756660257658,-1221.67,0.00018346,2]
[382540004,1756660257668,-480.0,0.00018346,2]
[382540005,1756660257677,-528.06,0.00018346,2]
[382540006,1756660257687,-626.71,0.00018346,2]
[382540007,1756660257696,-1292.28,0.00018346,2]
[382540008,1756660257706,-972.4,0.00018346,2]
[382540009,1756660257717,-1187.58,0.00018346,2]
[382540010,1756660257726,-480.0,0.00018346,2]
[382540011,1756660257736,-480.0,0.00018346,2]
[382540012,1756660257745,-480.0,0.00018346,2]
[382540013,1756660257758,-480.0,0.00018346,2]
[382540014,1756660257768,-745.14,0.00018346,2]
[382540015,1756660257778,-480.0,0.00018346,2]
[382540016,1756660257788,-480.0,0.00018346,2]
[382540017,1756660257798,-598.63,0.00018346,2]
[382540018,1756660257807,-480.0,0.00018346,2]
[382540019,1756660257818,-547.44,0.00018346,2]
[382540020,1756660257828,-643.11,0.00018346,2]
[382540021,1756660257837,-797.13,0.00018346,2]
[382540022,1756660257847,-883.48,0.00018346,2]
[382540023,1756660257856,-480.0,0.00018346,2]
[382540024,1756660257866,-735.89,0.00018346,2]
[382540025,1756660257875,-1557.13,0.00018346,2]
[382540026,1756660257885,-255.31608807,0.00018346,2]
[382540028,1756660257895,-480.0,0.00018346,2]
[382540029,1756660257904,-151.0,0.00018346,2]
[382540030,1756660257913,-174.328887,0.00018346,2]
[382540031,1756660257923,-480.0,0.00018346,2]
[382540032,1756660257932,-3517.95,0.00018346,2]
[382540033,1756660257942,-593.15,0.00018346,2]
[382540034,1756660257952,-151.0,0.00018346,2]
[382540035,1756660257963,-480.0,0.00018346,2]
[382540036,1756660257972,-151.0,0.00018346,2]
[382540037,1756660257982,-480.0,0.00018346,2]
[382540038,1756660257991,-596.0,0.00018346,2]
[382540039,1756660258000,-480.0,0.00018346,2]
[382540040,1756660258010,-480.0,0.00018346,2]
[382540041,1756660258020,-480.0,0.00018346,2]
[382540042,1756660258030,-655.56,0.00018346,2]
[382540043,1756660258041,-1302.86,0.00018346,2]
[382540044,1756660258051,-480.0,0.00018346,2]
[382540045,1756660258060,-522.69,0.00018346,2]
[382540046,1756660258069,-480.0,0.00018346,2]
[382540047,1756660258078,-480.0,0.00018346,2]
[382540048,1756660258087,-480.0,0.00018346,2]
[382540049,1756660258096,-480.0,0.00018346,2]
[382540050,1756660258106,-190.444749,0.00018346,2]
[382540051,1756660258115,-480.0,0.00018346,2]
[382540052,1756660258124,-190.444749,0.00018346,2]
[382540053,1756660258133,-561.27,0.00018346,2]
[382540054,1756660258143,-190.444749,0.00018346,2]
[382540055,1756660258153,-480.0,0.00018346,2]
[382540056,1756660258162,-190.444749,0.00018346,2]
[382540057,1756660258172,-1004.14,0.00018346,2]
[382540058,1756660258182,-2104.27,0.00018346,2]
[382540059,1756660258191,-1104.03,0.00018346,2]
[382540060,1756660258201,-5958.29,0.00018346,2]
[382540061,1756660258212,-480.0,0.00018346,2]
[382540062,1756660258221,-151.0,0.00018346,2]
[382540063,1756660258230,-895.23,0.00018346,2]
[382540064,1756660258240,-151.0,0.00018346,2]
[382540065,1756660258248,-480.0,0.00018346,2]
[382540066,1756660258256,-480.0,0.00018346,2]
[382540067,1756660258264,-480.0,0.00018346,2]
[382540068,1756660258273,-151.0,0.00018346,2]
[382540069,1756660258282,-295.25533,0.00018346,2]
[382540070,1756660258293,-151.0,0.00018346,2]
[382540071,1756660258302,-714.68,0.00018346,2]
[382540072,1756660258312,-275.44,0.00018346,2]
[382540073,1756660258321,-480.0,0.00018346,2]
[382540074,1756660258331,-932.89,0.00018346,2]
[382540075,1756660258342,-480.0,0.00018346,2]
[382540076,1756660258352,-1011.01,0.00018346,2]
[382540077,1756660258362,-480.0,0.00018346,2]
[382540078,1756660258371,-519.38947215,0.00018346,2]
[382540079,1756660258381,-795.43,0.00018346,2]
[382540080,1756660258391,-480.0,0.00018346,2]
[382540081,1756660258402,-3596.03,0.00018346,2]
[382540082,1756660258411,-480.0,0.00018346,2]
[382540083,1756660258420,-480.0,0.00018346,2]
[382540084,1756660258430,-151.0,0.00018346,2]
[382540085,1756660258439,-692.49,0.00018346,2]
[382540086,1756660258448,-1048.57,0.00018346,2]
[382540087,1756660258458,-727.17,0.00018346,2]
[382540088,1756660258467,-610.9,0.00018346,2]
[382540089,1756660258476,-550.69,0.00018346,2]
[382540090,1756660258485,-480.0,0.00018346,2]
[382540091,1756660258495,-1226.76,0.00018346,2]
[382540092,1756660258504,-480.0,0.00018346,2]
[382540093,1756660258513,-1792.03,0.00018346,2]
[382540094,1756660258522,-151.0,0.00018346,2]
[382540095,1756660258531,-480.0,0.00018346,2]
[382540096,1756660258540,-480.0,0.00018346,2]
[382540097,1756660258550,-676.86,0.00018346,2]
[382540098,1756660258559,-1042.83,0.00018346,2]
[382540099,1756660258568,-1636.62,0.00018346,2]
[382540100,1756660258577,-480.0,0.00018346,2]
[382540101,1756660258586,-480.0,0.00018346,2]
[382540102,1756660258595,-1141.17,0.00018346,2]
[382540103,1756660258605,-480.0,0.00018346,2]
[382540104,1756660258614,-568.76,0.00018346,2]
[382540105,1756660258623,-480.0,0.00018346,2]
[382540106,1756660258631,-480.0,0.00018346,2]
[382540107,1756660258639,-480.0,0.00018346,2]
[382540108,1756660258648,-480.0,0.00018346,2]
[382540109,1756660258656,-680.93,0.00018346,2]
[382540110,1756660258664,-968.96,0.00018346,2]
[382540111,1756660258672,-480.0,0.00018346,2]
[382540112,1756660258681,-564.06,0.00018346,2]
[382540113,1756660258690,-480.0,0.00018346,2]
[382540114,1756660258699,-480.0,0.00018346,2]
[382540115,1756660258850,-570.22,0.00018346,2]
[382540116,1756660258861,-859.09,0.00018346,2]
[382540117,1756660258871,-675.56,0.00018346,2]
[382540118,1756660258882,-480.0,0.00018346,2]
[382540119,1756660258891,-856.03,0.00018346,2]
[382540120,1756660258902,-537.12,0.00018346,2]
[382540121,1756660258912,-480.0,0.00018346,2]
[382540122,1756660258924,-480.0,0.00018346,2]
[382540123,1756660258934,-505.26,0.00018346,2]
[382540124,1756660258943,-480.0,0.00018346,2]
[382540125,1756660258952,-480.0,0.00018346,2]
[382540126,1756660258962,-480.0,0.00018346,2]
[382540127,1756660258971,-629.0,0.00018346,2]
[382540128,1756660258981,-480.0,0.00018346,2]
[382540129,1756660258991,-480.0,0.00018346,2]
[382540130,1756660259000,-2264.55,0.00018346,2]
[382540131,1756660259009,-418.0733762,0.00018346,2]
[382540132,1756660259019,-1322.48,0.00018346,2]
[382540133,1756660259028,-480.0,0.00018346,2]
[382540134,1756660259037,-480.0,0.00018346,2]
[382540135,1756660259047,-480.0,0.00018346,2]
[382540136,1756660259057,-480.0,0.00018346,2]
[382540137,1756660259066,-480.0,0.00018346,2]
[382540138,1756660259076,-260.69080686,0.00018346,2]
[382540139,1756660259087,-1271.51,0.00018346,2]
[382540140,1756660259097,-4086.95,0.00018346,2]
[382540141,1756660259107,-540.25,0.00018346,2]
[382540142,1756660259117,-614.18,0.00018346,2]
[382540143,1756660259126,-813.66,0.00018346,2]
[382540144,1756660259136,-531.69,0.00018346,2]
[382540145,1756660259146,-480.0,0.00018346,2]
[382540146,1756660259155,-480.0,0.00018346,2]
[382540147,1756660259164,-480.0,0.00018346,2]
[382540148,1756660259175,-480.0,0.00018346,2]
[382540149,1756660259184,-480.0,0.00018346,2]
[382540150,1756660259196,-912.13,0.00018346,2]
[382540151,1756660259206,-480.0,0.00018346,2]
[382540152,1756660259215,-480.0,0.00018346,2]
[382540153,1756660259224,-480.0,0.00018346,2]
[382540154,1756660259234,-4799.67,0.00018346,2]
[382540155,1756660259244,-480.0,0.00018346,2]
[382540156,1756660259255,-480.0,0.00018346,2]
[382540157,1756660259265,-480.0,0.00018346,2]
[382540158,1756660259274,-660.71,0.00018346,2]
[382540159,1756660259283,-1219.07,0.00018346,2]
[382540160,1756660259293,-480.0,0.00018346,2]
[382540161,1756660259303,-934.9,0.00018346,2]
[382540162,1756660259313,-333.83539052,0.00018346,2]
[382540163,1756660259324,-480.0,0.00018346,2]
[382540164,1756660259334,-918.48,0.00018346,2]
[382540165,1756660259344,-151.0,0.00018346,2]
[382540166,1756660259354,-1820.04,0.00018346,2]
[382540167,1756660259363,-480.0,0.00018346,2]
[382540168,1756660259372,-480.0,0.00018346,2]
[382540169,1756660259383,-875.46,0.00018346,2]
[382540170,1756660259393,-480.0,0.00018346,2]
[382540171,1756660259404,-2281.38,0.00018346,2]
[382540172,1756660259415,-480.0,0.00018346,2]
[382540173,1756660259426,-616.78250836,0.00018346,2]
[382540174,1756660259436,-921.32,0.00018346,2]
[382540175,1756660259446,-480.0,0.00018346,2]
[382540176,1756660259456,-1137.55,0.00018346,2]
[382540177,1756660259466,-642.61,0.00018346,2]
[382540178,1756660259475,-773.56,0.00018346,2]
[382540179,1756660259488,-480.0,0.00018346,2]
[382540180,1756660259497,-151.0,0.00018346,2]
[382540181,1756660259506,-1695.17,0.00018346,2]
[382540182,1756660259515,-942.36,0.00018346,2]
[382540183,1756660259524,-593.73,0.00018346,2]
[382540184,1756660259534,-553.08265921,0.00018346,2]
[382540185,1756660259543,-151.0,0.00018346,2]
[382540186,1756660259553,-480.0,0.00018346,2]
[382540187,1756660259562,-530.23,0.00018346,2]
[382540188,1756660259572,-480.0,0.00018346,2]
[382540189,1756660259582,-483.93,0.00018346,2]
[382540190,1756660259591,-480.0,0.00018346,2]
[382540191,1756660259601,-480.0,0.00018346,2]
[382540192,1756660259610,-865.95,0.00018346,2]
[382540193,1756660259619,-1020.63,0.00018346,2]
[382540194,1756660259629,-813.18,0.00018346,2]
[382540195,1756660259639,-480.0,0.00018346,2]
[382540196,1756660259649,-508.81,0.00018346,2]
[382540197,1756660259658,-284.048892,0.00018346,2]
[382540198,1756660259668,-968.45,0.00018346,2]
[382540199,1756660259677,-480.0,0.00018346,2]
[382540200,1756660259687,-1091.33,0.00018346,2]
[382540201,1756660259697,-480.0,0.00018346,2]
[382540202,1756660259707,-783.77,0.00018346,2]
[382540203,1756660259716,-151.0,0.00018346,2]
[382540204,1756660259726,-480.0,0.00018346,2]
[382540205,1756660259738,-151.0,0.00018346,2]
[382540206,1756660259748,-1124.92,0.00018346,2]
[382540207,1756660259759,-480.0,0.00018346,2]
[382540208,1756660259768,-795.69,0.00018346,2]
[382540209,1756660259776,-677.22,0.00018346,2]
[382540210,1756660259785,-151.0,0.00018346,2]
[382540211,1756660259794,-151.0,0.00018346,2]
[382540212,1756660259803,-381.05063748,0.00018346,2]
[382540213,1756660259812,-500.0,0.00018347,2]
[382540214,1756660259822,-480.0,0.00018347,2]
[382540215,1756660259831,-480.0,0.00018347,2]
[382540216,1756660259840,-480.0,0.00018347,2]
[382540217,1756660259850,-480.0,0.00018347,2]
[382540218,1756660259859,-480.0,0.00018347,2]
[382540219,1756660259869,-846.05,0.00018347,2]
[382540220,1756660259880,-480.0,0.00018347,2]
[382540221,1756660259890,-509.08,0.00018347,2]
[382540222,1756660259899,-480.0,0.00018347,2]
[382540223,1756660259909,-428.46219704,0.00018347,2]
[382540224,1756660259919,-635.77,0.00018347,2]
[382540225,1756660259929,-480.0,0.00018347,2]
[382540226,1756660259938,-480.0,0.00018347,2]
[382540227,1756660259947,-480.0,0.00018347,2]
[382540228,1756660259957,-594.65,0.00018347,2]
[382540229,1756660259966,-484.56,0.00018347,2]
[382540230,1756660259975,-1261.07,0.00018347,2]
[382540231,1756660259984,-480.0,0.00018347,2]
[382540232,1756660259993,-480.0,0.00018347,2]
[382540233,1756660260002,-151.123548,0.00018347,2]
[382540234,1756660260012,-706.62,0.00018347,2]
[382540235,1756660260022,-151.0,0.00018347,2]
[382540236,1756660260031,-480.0,0.00018347,2]
[382540237,1756660260042,-151.0,0.00018347,2]
[382540238,1756660260051,-480.0,0.00018347,2]
[382540239,1756660260061,-565.49,0.00018347,2]
[382540240,1756660260071,-480.0,0.00018347,2]
[382540241,1756660260081,-644.34,0.00018347,2]
[382540242,1756660260091,-542.54,0.00018347,2]
[382540243,1756660260101,-485.61,0.00018347,2]
[382540244,1756660260111,-150.251517,0.00018349,3]
[382540245,1756660260121,-840.0,0.00018363,2]
[382540246,1756660260130,-500.0,0.00018373,2]
[382540247,1756660260139,-500.0,0.00018373,2]
[382540248,1756660260149,-588.05978159,0.00018373,2]
[382540249,1756660260159,-500.0,0.00018373,2]
[382540250,1756660260168,-500.0,0.00018373,2]
[382540251,1756660260178,-500.0,0.00018373,2]
[382540252,1756660260187,-500.0,0.00018373,2]
[382540253,1756660260197,-160.49392826,0.00018373,2]
[382540254,1756660260209,-563.4286864,0.00018375,2]
[382540255,1756660260221,-151.0,0.000184,2]
[382540256,1756660260232,-150.251517,0.00018433,10]
[382540257,1756660260243,-800.0,0.0001844,2]
[382540258,1756660260254,-800.0,0.00018458,2]
[382540259,1756660260265,-154.58277628,0.00018472,2]
[382540260,1756660260275,-600.0,0.00018473,2]
[382540261,1756660260285,-151.0,0.000185,2]
[382540262,1756660260295,-1000.0,0.0001852,2]
[382540263,1756660260304,-14603.14603986,0.00018521,2]
[382540264,1756660260314,-150.251517,0.00018556,3]
[382540265,1756660260324,-3000.0,0.000186,2]
[382540266,1756660260333,-638.0,0.00018607,2]
[382540267,1756660260344,-3000.0,0.0001861,2]
[382540268,1756660260354,-3000.0,0.0001862,2]
[382540269,1756660260364,-480.0,0.0001862,2]
[382540270,1756660260373,-480.0,0.0001862,2]
[382540271,1756660260383,-1068.68,0.0001862,2]
[382540272,1756660260392,-480.0,0.0001862,2]
[382540273,1756660260402,-480.0,0.0001862,2]
[382540274,1756660260412,-480.0,0.0001862,2]
[382540275,1756660260423,-480.0,0.0001862,2]
[382540276,1756660260433,-807.76,0.0001862,2]
[382540277,1756660260443,-933.78,0.0001862,2]
[382540278,1756660260454,-480.0,0.0001862,2]
[382540279,1756660260463,-480.0,0.0001862,2]
[382540280,1756660260474,-613.83532325,0.0001862,2]
[382540281,1756660260484,-1179.57,0.0001862,2]
[382540282,1756660260494,-526.22,0.0001862,2]
[382540283,1756660260504,-600.74,0.0001862,2]
[382540284,1756660260514,-1120.85,0.0001862,2]
[382540285,1756660260523,-480.0,0.0001862,2]
[382540286,1756660260534,-480.0,0.0001862,2]
[382540287,1756660260544,-480.0,0.0001862,2]
[382540288,1756660260554,-399.11316098,0.0001862,2]
[382540289,1756660261382,2966.49614585,0.00017,2]
[382540290,1756660261411,2033.50385415,0.00017,2]
[382540291,1756660261594,-480.0,0.0001725,2]
[382540292,1756660261604,-500.0,0.0001725,2]
[382540293,1756660261614,-480.0,0.0001725,2]
[382540294,1756660261623,-480.0,0.0001725,2]
[382540295,1756660261633,-59.33698438,0.0001725,2]
[382540296,1756660273264,5000.0,0.00017228,2]
[382540298,1756660288675,5000.0,0.00017,2]
[382540299,1756660290825,-152.07796844,0.00017144,2]
[382540300,1756660294951,-276.26400764,0.00017144,2]
[382540302,1756660297346,-268.65802392,0.00017144,2]
[382540303,1756660297371,-33.44804704,0.00017146,2]
[382540304,1756660298995,-220.39162757,0.00017146,2]
[382540305,1756660303974,-314.57641778,0.00017146,2]
[382540306,1756660310217,-128.58390761,0.00017146,2]
[382540307,1756660311728,5000.0,0.00017,2]
[382540309,1756660319095,100664.26913571,0.00030969,60]
[382540312,1756660334207,0.01,0.00017,2]
[382540313,1756660334231,4999.99,0.00017,2]
[382540316,1756660357599,5000.0,0.00017,2]
[382540318,1756660381000,0.02,0.00017,2]
[382540319,1756660381022,4999.98,0.00017,2]
[382540320,1756660404193,5000.0,0.00017,2]
[382540321,1756660424098,-156.74392635,0.0001715,2]
[382540322,1756660426901,0.03,0.00017,2]
[382540323,1756660426925,4999.97,0.00017,2]
[382540324,1756660429609,-216.10032654,0.0001715,2]
[382540325,1756660431931,-48.57546107,0.0001715,2]
[382540326,1756660431953,-138.18281311,0.00017225,2]
[382540327,1756660436242,-70.32101385,0.00017225,2]
[382540328,1756660449976,5000.0,0.00017,2]
[382540329,1756660454609,0.04,8.153e-05,2]
[382540330,1756660454633,277.0483396,8.153e-05,2]
[382540331,1756660472932,5000.0,0.00017,2]
[382540333,1756660480931,4722.9616604,0.00016311,2]
[382540334,1756660480953,5642.342676,0.00016311,2]
[382540335,1756660492011,-187.18251958,0.00017129,2]
[382540336,1756660494269,-248.81748042,0.00017129,2]
[382540337,1756660495343,4357.667324,0.00017,2]
[382540338,1756660495368,642.332676,0.00017,2]
[382540339,1756660501176,182.4551426,0.00016442,2]
[382540340,1756660503258,5000.0,0.00017,2]
[382540343,1756660518520,4175.2221814,0.00017,2]
[382540344,1756660518543,824.7778186,0.00017,2]
[382540347,1756660526338,5000.0,0.00017,2]
[382540349,1756660542387,4175.2321814,0.00017,2]
[382540350,1756660542410,824.7678186,0.00017,2]
[382540351,1756660550707,5000.0,0.00017,2]
[382540353,1756660566182,4175.2421814,0.00017,2]
[382540354,1756660566204,824.7578186,0.00017,2]
[382540355,1756660573928,5000.0,0.00017,2]
[382540356,1756660577799,300000.0,0.00031002,60]
[382540357,1756660578995,2254.365153,0.00016311,2]
[382540358,1756660583263,1920.8870284,0.00016311,2]
[382540359,1756660583285,10000.01,0.00016311,2]
[382540360,1756660583307,10000.01,0.00016311,2]
[382540361,1756660583330,10000.01,0.00016311,2]
[382540362,1756660583352,10000.01,0.00016311,2]
[382540363,1756660583374,10000.01,0.00016311,2]
[382540364,1756660583400,10000.01,0.00016311,2]
[382540365,1756660583422,10000.01,0.00016311,2]
[382540366,1756660583444,10000.01,0.00016311,2]
[382540367,1756660583467,8958.0766462,0.00016311,2]
[382540368,1756660589690,1041.9333538,0.00017,2]
[382540369,1756660589712,3958.0666462,0.00017,2]
[382540370,1756660593322,6041.9433538,0.00016399,2]
[382540371,1756660593346,10000.01,0.00016399,2]
[382540372,1756660593370,10000.01,0.00016399,2]
[382540373,1756660593393,10000.01,0.00016399,2]
[382540374,1756660593417,518.0780838,0.00016399,2]
[382540378,1756660613695,5000.0,0.00017,2]
[382540379,1756660629802,960.0,0.00031002,60]
[382540380,1756660636364,4481.9319162,0.00017,2]
[382540381,1756660636387,518.0680838,0.00017,2]
[382540382,1756660639307,-373.7464258,0.00017224,2]
[382540383,1756660647042,-155.18115816,0.00017224,2]
[382540384,1756660658845,5000.0,0.00017,2]
[382540385,1756660666480,538.690244,0.00016732,2]
[382540386,1756660666862,1811.74328302,0.00016732,2]
[382540387,1756660681518,2131.50838918,0.00017,2]
[382540388,1756660681542,2868.49161082,0.00017,2]
[382540391,1756660704311,5000.0,0.00017,2]
[382540393,1756660714759,2702.15,0.00030906,60]
[382540394,1756660727097,5000.0,0.00017,2]
[382540395,1756660740955,1000.0,0.00016253,2]
[382540396,1756660749805,4000.01,0.00017,2]
[382540397,1756660749831,999.99,0.00017,2]
[382540398,1756660772715,5000.0,0.00017,2]
[382540399,1756660781077,4000.02,0.00017,2]
[382540400,1756660781101,999.98,0.00017,2]
[382540401,1756660781884,9000.03,0.00016249,2]
[382540402,1756660781908,10000.01,0.00016249,2]
[382540403,1756660781931,10000.01,0.00016249,2]
[382540404,1756660781955,4858.4732381,0.00016249,2]
[382540405,1756660795974,666.0,0.00016251,2]